[Event "Azerbaijan-ch 1st League 2025"]
[Site "Baku"]
[Date "2025.01.10"]
[Round "5.17"]
[White "Azimov, Yasin"]
[Black "Gulumov, Muthat"]
[Result "1/2-1/2"]
[Annotator "TA"]
[ECO "E05"]
[WhiteElo "1880"]
[BlackElo "2054"]
[PlyCount "75"]
[EventDate "2025.01.05"]
[EventType "swiss"]
[EventCountry "AZE"]
[SourceTitle "playchess.com"]
[Source "ChessBase"]
[SourceQuality "1"]
[TimeControl "40/5400+30:1800+30"]

{[%evp 12,75,25,12,22,5,27,28,26,18,37,25,55,51,79,82,89,64,79,106,87,90,85,87,89,74,66,75,97,91,92,25,23,29,22,29,35,0,24,51,33,0,0,-135,0,0,55,0,38,38,70,70,70,66,63,58,52,0,0,0,14,0,7,0,0,0]} 1. d4 {[%emt 0:00:08]} Nf6 {[%emt 0:00:14]} 2. c4 {[%emt 0:00:13]} e6 {[%emt 0:00:08]} 3. Nf3 {[%emt 0:00:17]} d5 {[%emt 0:00:07]} 4. g3 {[%emt 0:00:10]} Be7 {[%emt 0:00:13]} 5. Bg2 {[%emt 0:00:09]} O-O {[%emt 0:00:06]} 6. O-O {[%emt 0:00:08]} dxc4 {[%emt 0:00:02]} 7. Qc2 {[%emt 0:00:15]} b6 {[%emt 0:00:03]} 8. Qxc4 {[%emt 0:02:37]} Ba6 {[%emt 0:00:11]} 9. Qc2 {[%emt 0:01:43]} Bb7 {[%emt 0:00:16] White has an edge.} 10. Nc3 {[%emt 0:01:19]} Nc6 {[%emt 0:00:09][%cal Oh7h6]} 11. a3 {[%emt 0:06:29]} Na5 {[%emt 0:09:02]} 12. Rd1 {[%emt 0:05:06]} Qc8 {[%emt 0:01:48]} 13. e4 {[%emt 0:07:16]} c5 {[%emt 0:04:31]} 14. dxc5 {[%emt 0:05:09]} (14. d5 {simplifies} exd5 15. Nxd5 Nxd5 16. exd5 Bf6 17. Bd2) 14... Qxc5 {[%emt 0:11:49][%cal Of6e4]} 15. b4 {[%emt 0:05:23]} Bxe4 {[%emt 0:00:05]} 16. Qb2 {[%emt 0:03:20]} Qh5 {[%emt 0:04:42]} 17. Nxe4 {[%emt 0:13:31]} Nxe4 {[%emt 0:00:08]} 18. Qe5 {[%emt 0:05:06]} Qxe5 {[%emt 0:11:06]} 19. Nxe5 {[%emt 0:00:05]} Nb3 {[%emt 0:04:32][%cal Ba5b3,Bb3a1,Ba1c2][%mdl 32]} 20. Bxe4 {[%emt 0:07:54] This pair of bishops is nice.} Nxa1 {[%emt 0:00:08] [#]} 21. Bxa8 {[%emt 0:00:26]} (21. Bb2 $1 $16 {[%cal Oe4a8]} Rad8 (21... Nb3 $2 22. Bxa8 Rxa8 23. Rd3 $18) 22. Rxa1) 21... Rxa8 $11 {[%emt 0:00:09]} 22. Rd7 {[%emt 0:01:03]} Bf6 {[%emt 0:03:47]} 23. Nxf7 {[%emt 0:01:44]} Nc2 {[%emt 0:04:28]} 24. Bg5 {[%emt 0:04:35]} Rf8 {[%emt 0:02:36]} 25. Bxf6 {[%emt 0:00:10]} Rxf7 {[%emt 0:00:59][%mdl 4096] Endgame. KRB-KRN} 26. Rd8+ {[%emt 0:00:12]} Rf8 {[%emt 0:00:06]} 27. Rxf8+ {[%emt 0:00:05]} Kxf8 {[%emt 0:00:04] KB-KN} 28. Bb2 {[%emt 0:00:07]} Ne1 {[%emt 0:00:20]} (28... Ke7 $1 $11) 29. b5 {[%emt 0:04:36]} (29. Kf1 $14 Nf3 30. Ke2) 29... g6 {[%emt 0:05:00]} 30. Kf1 {[%emt 0:01:08]} Nd3 {[%emt 0:00:06]} 31. Bc3 {[%emt 0:01:23] [#] aiming for Ke2.} Ke7 {[%emt 0:00:40]} 32. Ke2 {[%emt 0:00:47]} Nc5 {[%emt 0:00:05]} 33. Be5 {[%emt 0:00:47]} Nd7 {[%emt 0:02:17]} 34. f4 {[%emt 0:00:17]} ({Better is} 34. Bc7 $14) 34... Nxe5 {[%emt 0:06:26] The position is equal.} 35. fxe5 {[%emt 0:00:02]} Kf7 {[%emt 0:00:09]} 36. Ke3 {[%emt 0:01:46]} Kg7 {[%emt 0:00:09] ...Kh6 would now be deadly.} 37. g4 {[%emt 0:01:29]} g5 {[%emt 0:00:51]} 38. Ke4 {[%emt 0:22:35] Weighted Error Value: White=0.15 (very precise) /Black=0.13 (very precise) .  Mistake:       	White=3     	Black=1      Inaccurate:     	White=2     	Black=5      OK:         	White=11    	Black=11     Best:        	White=3     	Black=2} 1/2-1/2

[Event "Azerbaijan-ch 1st League 2025"]
[Site "Baku"]
[Date "2025.01.11"]
[Round "6.1"]
[White "Aslanov, Umid"]
[Black "Atakishiyev, Elmar"]
[Result "1/2-1/2"]
[Annotator "RC"]
[ECO "B86"]
[WhiteElo "2250"]
[BlackElo "2408"]
[PlyCount "61"]
[EventDate "2025.01.05"]
[EventType "swiss"]
[EventCountry "AZE"]
[SourceTitle "playchess.com"]
[Source "ChessBase"]
[SourceQuality "1"]
[TimeControl "40/5400+30:1800+30"]

1. e4 {[%emt 0:00:04]} c5 {[%emt 0:00:10]} 2. Nf3 {[%emt 0:00:04]} d6 {[%emt 0:00:04]} 3. d4 {[%emt 0:00:04]} cxd4 {[%emt 0:00:16]} 4. Nxd4 {[%emt 0:00:05]} Nf6 {[%emt 0:00:08]} 5. Nc3 {[%emt 0:00:06]} a6 {[%emt 0:00:18]} 6. Bc4 {[%emt 0:01:34]} e6 {[%emt 0:00:09]} 7. Bb3 {[%emt 0:00:08]} Nbd7 {[%emt 0:00:03]} 8. f4 {[%emt 0:00:58]} Nc5 {[%emt 0:01:59]} 9. e5 {[%emt 0:00:06]} dxe5 {[%emt 0:08:31]} 10. fxe5 {[%emt 0:00:02]} Nxb3 {[%emt 0:05:44]} 11. axb3 {[%emt 0:01:38]} Bc5 {[%emt 0:10:37]} 12. Nxe6 {[%emt 0:12:52]} Bxe6 {[%emt 0:17:56]} 13. Qxd8+ {[%emt 0:00:07]} Rxd8 {[%emt 0:02:36]} 14. exf6 {[%emt 0:00:06]} gxf6 {[%emt 0:00:04]} 15. Ne4 {[%emt 0:04:16]} Bd4 {[%emt 0:00:42]} 16. c3 {[%emt 0:02:12]} Bd5 {[%emt 0:05:46]} 17. cxd4 {[%emt 0:02:02]} Bxe4 {[%emt 0:00:11]} 18. O-O {[%emt 0:00:06]} Rg8 {[%emt 0:00:16]} 19. g3 {[%emt 0:00:14]} Rxd4 {[%emt 0:01:33]} 20. Rxf6 {[%emt 0:00:47]} Ke7 {[%emt 0:00:43]} 21. Rf1 {[%emt 0:01:31]} Rd3 {[%emt 0:05:28]} 22. b4 {[%emt 0:03:11]} Rb3 {[%emt 0:03:29]} 23. Ra5 {[%emt 0:00:45]} Ke6 {[%emt 0:03:41]} 24. Bf4 {[%emt 0:02:06]} f5 {[%emt 0:02:46]} 25. Re5+ {[%emt 0:02:59]} Kf6 {[%emt 0:00:05]} 26. b5 {[%emt 0:00:05]} Rxb5 {[%emt 0:00:46]} 27. Rxb5 {[%emt 0:00:04]} axb5 {[%emt 0:00:04]} 28. Rd1 {[%emt 0:00:19]} Re8 {[%emt 0:00:29]} 29. Rd6+ {[%emt 0:00:06]} Re6 {[%emt 0:00:08]} 30. Rxe6+ {[%emt 0:00:05]} Kxe6 {[%emt 0:00:02]} 31. b4 {[%emt 0:00:04]} 1/2-1/2

[Event "Azerbaijan-ch 1st League 2025"]
[Site "Baku"]
[Date "2025.01.11"]
[Round "6.2"]
[White "Ibrahimli, Murad"]
[Black "Hamidov, Allahverdi"]
[Result "1/2-1/2"]
[Annotator "TA"]
[ECO "D35"]
[WhiteElo "2415"]
[BlackElo "2200"]
[PlyCount "125"]
[EventDate "2025.01.05"]
[EventType "swiss"]
[EventCountry "AZE"]
[SourceTitle "playchess.com"]
[Source "ChessBase"]
[SourceQuality "1"]
[TimeControl "40/5400+30:1800+30"]

{[%evp 15,125,19,23,16,20,18,24,0,22,30,26,29,29,22,22,23,33,0,12,0,0,-8,-15,0,0,0,13,0,0,0,0,0,0,0,0,0,0,0,0,0,148,167,166,122,166,143,275,116,110,39,246,0,38,23,65,-27,73,54,47,0,0,0,126,110,174,130,189,187,179,52,177,179,216,206,198,219,235,237,198,238,316,99,97,41,143,152,152,138,322,303,385,385,336,-155,-14,-20,-18,-14,-16,-19,-14,-14,-14,-14,-16,-26,-18,-26,-26,-26,-16,-16]} 1. d4 {[%emt 0:02:49]} d5 {[%emt 0:00:06]} 2. c4 {[%emt 0:00:15]} e6 {[%emt 0:00:03]} 3. Nc3 {[%emt 0:00:05]} Nf6 {[%emt 0:00:03]} 4. cxd5 {[%emt 0:00:30]} exd5 {[%emt 0:00:06]} 5. Bg5 {[%emt 0:00:08]} c6 {[%emt 0:00:08]} 6. e3 {[%emt 0:00:15]} h6 {[%emt 0:00:05]} 7. Bh4 {[%emt 0:00:45]} Be7 {[%emt 0:00:27]} 8. Bd3 {[%emt 0:00:18]} O-O {[%emt 0:00:10]} 9. Nge2 {[%emt 0:02:01]} Re8 {[%emt 0:00:15]} 10. O-O {[%emt 0:05:08]} Nbd7 {[%emt 0:00:39]} 11. a4 {[%emt 0:02:51]} Ne4 {[%emt 0:02:24]} 12. Bxe7 {[%emt 0:00:27]} Qxe7 {[%emt 0:00:26]} 13. Bxe4 {[%emt 0:17:14]} dxe4 {[%emt 0:00:07]} 14. a5 {[%emt 0:08:21]} Nf6 {[%emt 0:04:45]} 15. Qc2 {[%emt 0:11:20]} Bf5 {[%emt 0:05:34]} 16. Nf4 {[%emt 0:00:21]} Rad8 {[%emt 0:06:31]} 17. Rfd1 {[%emt 0:11:58]} h5 {[%emt 0:03:56]} 18. Nfe2 {[%emt 0:18:08]} h4 {[%emt 0:02:10] White should prevent ...h3.} 19. h3 {[%emt 0:00:23]} Rd6 {[%emt 0:14:09]} 20. Qb3 {[%emt 0:02:27]} Red8 {[%emt 0:02:46]} 21. Qa3 {[%emt 0:04:12][%cal Od4d5]} Qd7 {[%emt 0:04:13][%cal Of5h3]} 22. Kh2 {[%emt 0:01:21]} Qc7 {[%emt 0:07:12]} 23. Kg1 {[%emt 0:00:49][%cal Bh2g1,Bg1f1,Bf1e1,Be1d2][%mdl 32]} Qd7 {[%emt 0:00:24][%cal Of5h3]} 24. Kf1 {[%emt 0:02:55]} Bxh3 {[%emt 0:04:14]} 25. gxh3 {[%emt 0:01:45]} Qxh3+ {[%emt 0:00:04]} 26. Ke1 {[%emt 0:00:03]} Qf3 {[%emt 0:01:27]} 27. Kd2 {[%emt 0:01:37] Rh1 is the strong threat.} h3 {[%emt 0:05:28]} (27... Qxf2 $2 28. Rf1 Qg2 29. Rg1 $18) (27... Ng4 $1 $11) 28. Rh1 $1 $16 {[%emt 0:00:51]} Ng4 {[%emt 0:00:50]} (28... Qxf2 $2 29. Rxh3 Qf5 30. Rah1 $18) 29. Raf1 $1 {[%emt 0:03:25]} h2 {[%emt 0:01:20]} (29... Nxf2 $2 30. Rh2 $18) 30. Qc5 {[%emt 0:00:14]} f5 {[%emt 0:02:20]} (30... b6 $16 31. axb6 axb6 32. Qxb6 R8d7) 31. Qc4+ {[%emt 0:00:34]} (31. Qxa7 $18 R6d7 32. Kc2) 31... Kh7 {[%emt 0:03:20]} 32. Ng3 {[%emt 0:01:07]} (32. Qf7 $16) 32... Rh6 $2 {[%emt 0:18:49]} (32... R8d7 $1 $14) 33. Qe2 $2 {[%emt 0:01:15]} (33. Qf7 $18) 33... g6 {[%emt 0:03:30]} 34. Kc1 {[%emt 0:00:27]} Kg7 {[%emt 0:01:32]} (34... Qxe2 {simplifies} 35. Ngxe2 Kg7 36. Ng3 b6) 35. Nb1 {[%emt 0:00:29]} (35. Qe1 $14) 35... f4 {[%emt 0:01:11]} (35... Qxe2 $1 $11 36. Nxe2 Rd5) 36. Qxf3 {[%emt 0:00:36]} exf3 {[%emt 0:00:02]} 37. exf4 {[%emt 0:00:09]} (37. Ne4 $1 $14) 37... Rxd4 $11 {[%emt 0:00:13]} 38. f5 {[%emt 0:00:37]} g5 {[%emt 0:01:05]} (38... Rc4+ $11 {keeps the balance.} 39. Nc3 Rc5) 39. Nd2 $16 {[%emt 0:00:08]} Ra4 {[%emt 0:05:36]} (39... Ne5 $16) 40. Kc2 {[%emt 0:00:00]} Rh3 {[%emt 0:00:00]} (40... Ne5 $16) 41. Nxf3 $18 {[%emt 0:13:02]} Rxa5 {[%emt 0:10:14]} 42. Kd2 {[%emt 0:06:43]} (42. Nxg5 Rxg3 43. fxg3 Ne3+ 44. Kd3 Nxf1 45. Ne6+ (45. Rxf1 Rxf5 46. Ne6+ Kf6 $14) 45... Kf6 46. Rxf1 Rxf5 $16) ({Only move:} 42. Kb1 $1 $18) 42... Rb5 {[%emt 0:01:26]} (42... Nxf2 $1 $14 43. Rxf2 Rxg3) 43. Nxg5 {[%emt 0:02:27]} Rh8 {[%emt 0:01:43]} (43... Rxb2+ $2 44. Kc3 Rxg3+ 45. fxg3 $18 (45. Kxb2 Rd3 $18)) 44. Kc1 {[%emt 0:00:55]} a5 {[%emt 0:01:03][%cal Ba7a5,Ba5a4][%mdl 32]} 45. N5e4 {[%emt 0:00:19]} a4 {[%emt 0:01:28]} 46. f3 {[%emt 0:03:56]} Ne5 {[%emt 0:00:06]} 47. f6+ {[%emt 0:00:08]} Kg6 {[%emt 0:00:35]} 48. Rd1 $2 {[%emt 0:03:05] Dodges Nd3+} (48. f4 $18 Nd3+ 49. Kd2) 48... Rd5 $16 {[%emt 0:02:06]} 49. Rhf1 {[%emt 0:03:39]} (49. f4 $16 Ng4 50. Rde1) 49... Nd3+ {[%emt 0:00:12]} (49... b5 $14) 50. Kb1 $1 {[%emt 0:00:11]} Nf4 {[%emt 0:00:11]} 51. Rc1 {[%emt 0:00:16]} Rh3 $2 {[%emt 0:00:41]} (51... Rb5 $16 {was called for.}) 52. Rc2 {[%emt 0:00:27]} Nh5 {[%emt 0:03:06]} 53. Nxh5 {[%emt 0:00:25]} h1=Q {[%emt 0:02:25] [#]} 54. Rg2+ $2 {[%emt 0:01:59] [#]} Kf7 {[%emt 0:02:59]} (54... Qxg2 $2 {too greedy.} 55. Nf4+ Kf5 56. Nxg2 $18) ({Black should try} 54... Kh6 $1 $17 55. Rxh1 Rxh1+ 56. Ka2 Rdd1 (56... Kxh5 $2 57. f7 $18) (56... Rdxh5 $2 57. Nd6 $18) (56... Rhxh5 57. Rg7 $17)) 55. Rg7+ {[%emt 0:00:12]} Kf8 {[%emt 0:00:18]} 56. Rxh1 {[%emt 0:00:12]} Rxh1+ {[%emt 0:00:04]} 57. Ka2 {[%emt 0:00:19]} Rhxh5 {[%emt 0:00:09]} 58. Rxb7 $11 {[%emt 0:00:01] KRR-KRN} Rhf5 {[%emt 0:01:31]} 59. Rb8+ {[%emt 0:00:43]} Kf7 {[%emt 0:00:16]} 60. Rb7+ {[%emt 0:00:49]} Kg6 {[%emt 0:06:04]} 61. Rb6 {[%emt 0:00:21]} Rxf3 {[%emt 0:00:51] Threatens to win with ...Rd4.} 62. Rxc6 {[%emt 0:00:06]} a3 {[%emt 0:03:06]} 63. Nc3 {[%emt 0:00:03]} 1/2-1/2

[Event "Azerbaijan-ch 1st League 2025"]
[Site "Baku"]
[Date "2025.01.11"]
[Round "6.3"]
[White "Ahmadov, Fariz"]
[Black "Ahmad, Khagan"]
[Result "0-1"]
[Annotator "RC"]
[ECO "A07"]
[WhiteElo "2224"]
[BlackElo "2406"]
[PlyCount "56"]
[EventDate "2025.01.05"]
[EventType "swiss"]
[EventCountry "AZE"]
[SourceTitle "playchess.com"]
[Source "ChessBase"]
[SourceQuality "1"]
[TimeControl "40/5400+30:1800+30"]

1. Nf3 {[%emt 0:00:30]} d5 {[%emt 0:00:19]} 2. g3 {[%emt 0:00:20]} Nd7 {[%emt 0:00:17]} 3. Bg2 {[%emt 0:01:35]} e5 {[%emt 0:00:39]} 4. d3 {[%emt 0:00:54]} Ngf6 {[%emt 0:00:27]} 5. O-O {[%emt 0:00:04]} Be7 {[%emt 0:01:56]} 6. e4 {[%emt 0:00:47]} dxe4 {[%emt 0:01:22]} 7. dxe4 {[%emt 0:00:06]} Nxe4 {[%emt 0:00:45]} 8. Nxe5 {[%emt 0:07:44]} Nxf2 {[%emt 0:28:02]} 9. Qh5 {[%emt 0:10:23]} Nh3+ {[%emt 0:19:08]} 10. Kh1 {[%emt 0:10:40]} Nxe5 {[%emt 0:00:16]} 11. Qxe5 {[%emt 0:00:07]} O-O {[%emt 0:00:24]} 12. Nc3 {[%emt 0:01:33]} Bg4 {[%emt 0:03:41]} 13. Nd5 {[%emt 0:04:06]} Bd6 {[%emt 0:00:34]} 14. Qd4 {[%emt 0:08:15]} f5 {[%emt 0:00:25]} 15. Ne3 {[%emt 0:02:48]} Qd7 {[%emt 0:02:15]} 16. c4 {[%emt 0:03:20]} Rad8 {[%emt 0:12:31]} 17. Nxg4 {[%emt 0:21:54]} fxg4 {[%emt 0:00:04]} 18. Bh6 {[%emt 0:01:04]} c6 {[%emt 0:08:35]} 19. Be3 {[%emt 0:04:40]} Qe6 {[%emt 0:05:54]} 20. Qxa7 {[%emt 0:02:49]} Rde8 {[%emt 0:05:45]} 21. Bd4 {[%emt 0:08:18]} Qxc4 {[%emt 0:01:06]} 22. b3 {[%emt 0:01:16]} Qd3 {[%emt 0:03:02]} 23. Rfd1 {[%emt 0:00:44]} Qe2 {[%emt 0:01:56]} 24. Qxb7 {[%emt 0:03:53]} Be5 {[%emt 0:01:13]} 25. Bxe5 {[%emt 0:02:05]} Rxe5 {[%emt 0:00:39]} 26. Bxh3 {[%emt 0:01:36]} gxh3 {[%emt 0:00:33]} 27. Qxc6 {[%emt 0:00:01]} Re4 {[%emt 0:00:57]} 28. Qc3 {[%emt 0:00:21]} Qg2# {[%emt 0:00:04]} 0-1

[Event "Azerbaijan-ch 1st League 2025"]
[Site "Baku"]
[Date "2025.01.11"]
[Round "6.4"]
[White "Suleymanli, Suleyman"]
[Black "Ibrahimli, Suat"]
[Result "1-0"]
[Annotator "RC"]
[ECO "A11"]
[WhiteElo "2280"]
[BlackElo "1949"]
[PlyCount "229"]
[EventDate "2025.01.05"]
[EventType "swiss"]
[EventCountry "AZE"]
[SourceTitle "playchess.com"]
[Source "ChessBase"]
[SourceQuality "1"]
[TimeControl "40/5400+30:1800+30"]

1. Nf3 {[%emt 1:31:00]} d5 {[%emt 0:00:09]} 2. g3 {[%emt 0:00:00]} Bg4 {[%emt 0:00:04]} 3. Bg2 {[%emt 0:00:00]} Nd7 {[%emt 0:00:03]} 4. c4 {[%emt 0:00:00]} e6 {[%emt 0:01:05]} 5. cxd5 {[%emt 0:00:00]} exd5 {[%emt 0:00:11]} 6. O-O {[%emt 0:00:00]} c6 {[%emt 0:00:28]} 7. h3 {[%emt 0:00:00]} Bxf3 {[%emt 0:02:40]} 8. Bxf3 {[%emt 0:00:00]} Ngf6 {[%emt 0:00:06]} 9. d3 {[%emt 0:00:00]} Bd6 {[%emt 0:00:23]} 10. Nc3 {[%emt 0:00:00]} O-O {[%emt 0:00:22]} 11. e4 {[%emt 0:00:00]} dxe4 {[%emt 0:09:15]} 12. dxe4 {[%emt 0:00:00]} Ne5 {[%emt 0:00:49]} 13. Bg2 {[%emt 0:00:00]} Bc5 {[%emt 0:01:19]} 14. Na4 {[%emt 0:00:00]} Bd4 {[%emt 0:07:12]} 15. Kh2 {[%emt 0:00:00]} Nc4 {[%emt 0:05:39]} 16. Qe2 {[%emt 0:07:30]} Nb6 {[%emt 0:17:04]} 17. Nc3 {[%emt 0:00:00]} Qe7 {[%emt 0:00:41]} 18. Rd1 {[%emt 0:00:00]} Rad8 {[%emt 0:00:35]} 19. Bf4 {[%emt 0:00:00]} h6 {[%emt 0:02:45]} 20. e5 {[%emt 0:00:00]} Bxc3 {[%emt 0:00:23]} 21. bxc3 {[%emt 0:00:00]} Nfd5 {[%emt 0:00:28]} 22. Bd2 {[%emt 0:00:00]} Qc5 {[%emt 0:05:52]} 23. Qg4 {[%emt 0:00:00]} h5 {[%emt 0:19:25]} 24. Qd4 {[%emt 0:00:00]} Qxd4 {[%emt 0:01:22]} 25. cxd4 {[%emt 0:00:00]} Nc4 {[%emt 0:01:14]} 26. Bg5 {[%emt 0:00:00]} Rd7 {[%emt 0:04:38]} 27. Bf1 {[%emt 0:00:00]} b5 {[%emt 0:01:36]} 28. Rac1 {[%emt 0:00:00]} Ndb6 {[%emt 0:00:50]} 29. Be2 {[%emt 0:00:00]} Nb2 {[%emt 0:05:48]} 30. Rd2 {[%emt 0:01:03]} N2c4 {[%emt 0:00:57]} 31. Rd3 {[%emt 0:01:12]} Nb2 {[%emt 0:02:22]} 32. Rb3 {[%emt 0:02:14]} N2c4 {[%emt 0:00:19]} 33. Rd1 {[%emt 0:00:39]} f6 {[%emt 0:03:46]} 34. exf6 {[%emt 0:00:29]} gxf6 {[%emt 0:00:04]} 35. Bc1 {[%emt 0:00:54]} Rfd8 {[%emt 0:00:10]} 36. Bxh5 {[%emt 0:00:21]} Rxd4 {[%emt 0:00:13]} 37. Re1 {[%emt 0:00:12]} a5 {[%emt 0:00:44]} 38. Rf3 {[%emt 0:01:01]} Nd5 {[%emt 0:06:22]} 39. Re6 {[%emt 0:02:02]} Rd6 {[%emt 0:01:43]} 40. Re8+ {[%emt 0:00:00]} Kg7 {[%emt 0:00:00]} 41. g4 {[%emt 0:11:32]} Rd1 {[%emt 0:01:14]} 42. Bf4 {[%emt 0:01:17]} Nxf4 {[%emt 0:00:07]} 43. Rxf4 {[%emt 0:01:59]} R1d4 {[%emt 0:01:42]} 44. Re7+ {[%emt 0:02:53]} Kh6 {[%emt 0:00:56]} 45. Rxd4 {[%emt 0:01:24]} Rxd4 {[%emt 0:00:36]} 46. Be8 {[%emt 0:01:08]} Rd2 {[%emt 0:01:08]} 47. Kg3 {[%emt 0:00:57]} Rd3+ {[%emt 0:08:04]} 48. Kg2 {[%emt 0:01:00]} Kg5 {[%emt 0:02:53]} 49. Bxc6 {[%emt 0:00:32]} b4 {[%emt 0:00:49]} 50. Bb5 {[%emt 0:01:11]} Rc3 {[%emt 0:01:21]} 51. Bxc4 {[%emt 0:01:29]} Rxc4 {[%emt 0:00:05]} 52. Ra7 {[%emt 0:00:06]} Rc5 {[%emt 0:00:03]} 53. Rb7 {[%emt 0:03:23]} Kf4 {[%emt 0:01:04]} 54. a3 {[%emt 0:00:13]} bxa3 {[%emt 0:00:22]} 55. Rb3 {[%emt 0:00:03]} a2 {[%emt 0:00:42]} 56. Ra3 {[%emt 0:00:07]} f5 {[%emt 0:01:23]} 57. Rxa2 {[%emt 0:00:25]} Rb5 {[%emt 0:00:35]} 58. Ra4+ {[%emt 0:01:09]} Rb4 {[%emt 0:00:30]} 59. Rxa5 {[%emt 0:00:02]} fxg4 {[%emt 0:00:53]} 60. h4 {[%emt 0:04:49]} Rb3 {[%emt 0:00:13]} 61. Ra8 {[%emt 0:01:54]} Rh3 {[%emt 0:00:41]} 62. Rf8+ {[%emt 0:00:59]} Ke4 {[%emt 0:01:15]} 63. Rh8 {[%emt 0:00:46]} Kf4 {[%emt 0:00:12]} 64. Rh7 {[%emt 0:00:54]} Kf5 {[%emt 0:01:04]} 65. Rh5+ {[%emt 0:00:12]} Kf4 {[%emt 0:00:14]} 66. Rh8 {[%emt 0:00:07]} Kf5 {[%emt 0:00:09]} 67. Rh6 {[%emt 0:00:23]} Kf4 {[%emt 0:00:05]} 68. Rf6+ {[%emt 0:00:01]} Ke5 {[%emt 0:00:17]} 69. Rf8 {[%emt 0:00:09]} Ke4 {[%emt 0:00:02]} 70. h5 {[%emt 0:00:16]} Rxh5 {[%emt 0:00:53]} 71. Kg3 {[%emt 0:00:01]} Rh1 {[%emt 0:00:08]} 72. Rf4+ {[%emt 0:00:14]} Ke5 {[%emt 0:00:02]} 73. Rxg4 {[%emt 0:00:18]} Kf5 {[%emt 0:00:16]} 74. Rb4 {[%emt 0:00:01]} Rg1+ {[%emt 0:00:10]} 75. Kf3 {[%emt 0:00:01]} Ra1 {[%emt 0:00:11]} 76. Rb5+ {[%emt 0:00:02]} Kf6 {[%emt 0:00:10]} 77. Kg4 {[%emt 0:00:03]} Ra4+ {[%emt 0:02:15]} 78. f4 {[%emt 0:00:03]} Ra6 {[%emt 0:01:29]} 79. Rb8 {[%emt 0:01:29]} Rc6 {[%emt 0:00:43]} 80. Rh8 {[%emt 0:00:08]} Kg7 {[%emt 0:01:02]} 81. Rh5 {[%emt 0:00:27]} Rb6 {[%emt 0:00:09]} 82. Rh1 {[%emt 0:01:16]} Rc6 {[%emt 0:00:10]} 83. Kg5 {[%emt 0:01:28]} Ra6 {[%emt 0:00:07]} 84. Rb1 {[%emt 0:00:13]} Kf7 {[%emt 0:00:13]} 85. Rb7+ {[%emt 0:00:43]} Kf8 {[%emt 0:00:05]} 86. Rc7 {[%emt 0:01:43]} Rb6 {[%emt 0:00:04]} 87. Ra7 {[%emt 0:00:05]} Rc6 {[%emt 0:00:04]} 88. Rh7 {[%emt 0:01:43]} Ra6 {[%emt 0:02:36]} 89. Rc7 {[%emt 0:00:18]} Rb6 {[%emt 0:00:04]} 90. Ra7 {[%emt 0:00:31]} Rc6 {[%emt 0:00:53]} 91. Kf5 {[%emt 0:00:07]} Rb6 {[%emt 0:00:06]} 92. Ke5 {[%emt 0:00:38]} Rc6 {[%emt 0:00:12]} 93. Rd7 {[%emt 0:00:33]} Rh6 {[%emt 0:01:13]} 94. Rd8+ {[%emt 0:01:18]} Kf7 {[%emt 0:00:37]} 95. Rd7+ {[%emt 0:00:05]} Kf8 {[%emt 0:00:05]} 96. Kf5 {[%emt 0:00:00]} Ra6 {[%emt 0:00:10]} 97. Kg5 {[%emt 0:00:02]} Rb6 {[%emt 0:00:08]} 98. Rd5 {[%emt 0:00:28]} Ra6 {[%emt 0:00:12]} 99. Re5 {[%emt 0:00:22]} Rb6 {[%emt 0:00:29]} 100. Kf5 {[%emt 0:00:02]} Kf7 {[%emt 0:00:13]} 101. Ra5 {[%emt 0:00:09]} Rc6 {[%emt 0:00:11]} 102. Kg5 {[%emt 0:00:25]} Rb6 {[%emt 0:00:17]} 103. Rf5+ {[%emt 0:00:07]} Kg7 {[%emt 0:00:10]} 104. Kg4 {[%emt 0:00:34]} Ra6 {[%emt 0:00:38]} 105. Rb5 {[%emt 0:00:14]} Kf7 {[%emt 0:00:15]} 106. Rb7+ {[%emt 0:00:05]} Kf8 {[%emt 0:00:03]} 107. Kf5 {[%emt 0:00:37]} Ra5+ {[%emt 0:00:18]} 108. Kg6 {[%emt 0:00:21]} Ra6+ {[%emt 0:00:01]} 109. Kg5 {[%emt 0:00:05]} Rc6 {[%emt 0:00:45]} 110. Rd7 {[%emt 0:00:22]} Rb6 {[%emt 0:00:04]} 111. Kf5 {[%emt 0:00:03]} Ra6 {[%emt 0:00:28]} 112. Ke5 {[%emt 0:00:06]} Rh6 {[%emt 0:00:16]} 113. Rd8+ {[%emt 0:00:20]} Ke7 {[%emt 0:00:13]} 114. Rb8 {[%emt 0:00:32]} Rh5+ {[%emt 0:00:36]} 115. f5 {[%emt 0:00:08]} 1-0